lending/lending_fUSD_20250114
["ID","MTS","AMOUNT","RATE_DAILY","PERIOD"]
[348931730,1736875858819,-182.65106808,0.00010939,2]
[348931731,1736875858829,-255.0,0.00010958,2]
[348931732,1736875858839,-150.0,0.00010959,2]
[348931733,1736875858848,-7682.88529905,0.00010982,2]
[348931734,1736875858858,-2315.27551923,0.00010989,2]
[348931735,1736875858867,-968.77961326,0.00011,2]
[348931736,1736875858876,-434968.90447805,0.00011,2]
[348931737,1736875859684,-612.42,9.963e-05,2]
[348931738,1736875859694,-860.28,9.963e-05,2]
[348931739,1736875859704,-500.0,9.999e-05,2]
[348931740,1736875859714,-500.0,9.999e-05,2]
[348931741,1736875859724,-272.29410503,0.00010237,2]
[348931742,1736875859737,-340.12589497,0.00010237,2]
[348931743,1736875859747,-860.28,0.00010237,2]
[348931744,1736875859757,-500.0,0.00010273,2]
[348931745,1736875859768,-612.42,0.00010511,2]
[348931746,1736875859777,-860.28,0.00010511,2]
[348931747,1736875859788,-500.0,0.00010547,2]
[348931748,1736875859798,-500.0,0.00010783,2]
[348931749,1736875859809,-612.42,0.00010785,2]
[348931750,1736875859819,-860.28,0.00010785,2]
[348931751,1736875859829,-619.41,0.00010795,2]
[348931752,1736875859839,-296.32,0.00010821,2]
[348931753,1736875859849,-36994.97520628,0.00011,2]
[348931754,1736875859860,-456.62767021,0.00011036,2]
[348931755,1736875859870,-500.0,0.00011057,2]
[348931756,1736875859880,-500.0,0.00011057,2]
[348931757,1736875859889,-500.0,0.00011057,2]
[348931758,1736875859899,-500.0,0.00011057,2]
[348931759,1736875859910,-500.0,0.00011057,2]
[348931760,1736875859920,-500.0,0.00011057,2]
[348931761,1736875859930,-500.0,0.00011057,2]
[348931762,1736875859940,-500.0,0.00011057,2]
[348931763,1736875859950,-500.0,0.00011057,2]
[348931764,1736875859960,-500.0,0.00011057,2]
[348931765,1736875859972,-500.0,0.00011057,2]
[348931766,1736875859982,-500.0,0.00011057,2]
[348931767,1736875859991,-500.0,0.00011057,2]
[348931768,1736875860001,-539.50001,0.00011057,2]
[348931769,1736875860011,-500.0,0.00011057,2]
[348931770,1736875860022,-679.78,0.00011057,2]
[348931771,1736875860032,-500.0,0.00011057,2]
[348931772,1736875860042,-500.0,0.00011057,2]
[348931773,1736875860052,-500.0,0.00011057,2]
[348931774,1736875860062,-500.0,0.00011057,2]
[348931775,1736875860072,-500.0,0.00011057,2]
[348931776,1736875860082,-500.0,0.00011057,2]
[348931777,1736875860092,-500.0,0.00011057,2]
[348931778,1736875860102,-612.08,0.00011057,2]
[348931779,1736875860113,-500.0,0.00011057,2]
[348931780,1736875860123,-500.0,0.00011057,2]
[348931781,1736875860133,-500.0,0.00011057,2]
[348931782,1736875860143,-500.0,0.00011057,2]
[348931783,1736875860152,-500.0,0.00011057,2]
[348931784,1736875860163,-529.51,0.00011057,2]
[348931785,1736875860172,-500.0,0.00011057,2]
[348931786,1736875860183,-500.0,0.00011057,2]
[348931787,1736875860193,-500.0,0.00011057,2]
[348931788,1736875860203,-500.0,0.00011057,2]
[348931789,1736875860213,-500.0,0.00011057,2]
[348931790,1736875860223,-500.0,0.00011057,2]
[348931791,1736875860233,-500.0,0.00011057,2]
[348931792,1736875860243,-591.09,0.00011057,2]
[348931793,1736875860253,-500.0,0.00011057,2]
[348931794,1736875860263,-500.0,0.00011057,2]
[348931795,1736875860273,-500.0,0.00011057,2]
[348931796,1736875860284,-374.96933046,0.00011057,2]
[348931797,1736875860295,-683.19,0.00011057,2]
[348931798,1736875860306,-500.0,0.00011057,2]
[348931799,1736875860316,-500.0,0.00011057,2]
[348931800,1736875860326,-500.0,0.00011057,2]
[348931801,1736875860336,-500.0,0.00011057,2]
[348931802,1736875860346,-500.0,0.00011057,2]
[348931803,1736875860357,-500.0,0.00011057,2]
[348931804,1736875860367,-500.0,0.00011057,2]
[348931805,1736875860377,-500.0,0.00011057,2]
[348931806,1736875860387,-500.0,0.00011057,2]
[348931807,1736875860397,-500.0,0.00011057,2]
[348931808,1736875860408,-500.0,0.00011057,2]
[348931809,1736875860418,-509.92,0.00011057,2]
[348931810,1736875860428,-500.0,0.00011057,2]
[348931811,1736875860438,-500.0,0.00011057,2]
[348931812,1736875860449,-500.0,0.00011057,2]
[348931813,1736875860463,-500.0,0.00011057,2]
[348931814,1736875860477,-579.7,0.00011057,2]
[348931815,1736875860487,-549.57,0.00011057,2]
[348931816,1736875860498,-500.0,0.00011057,2]
[348931817,1736875860508,-1298.29573518,0.00011057,2]
[348931818,1736875860526,-1928.96426482,0.00011057,2]
[348931819,1736875860536,-619.05,0.00011057,2]
[348931820,1736875860548,-500.0,0.00011057,2]
[348931821,1736875860558,-500.0,0.00011057,2]
[348931822,1736875860568,-500.0,0.00011057,2]
[348931823,1736875860578,-2759.28,0.00011057,2]
[348931824,1736875860588,-500.0,0.00011057,2]
[348931825,1736875860598,-500.0,0.00011057,2]
[348931826,1736875860609,-500.0,0.00011057,2]
[348931827,1736875860620,-500.0,0.00011057,2]
[348931828,1736875860631,-500.0,0.00011057,2]
[348931829,1736875860642,-603.0,0.00011057,2]
[348931830,1736875860651,-2198.48,0.00011057,2]
[348931831,1736875860662,-500.0,0.00011057,2]
[348931832,1736875860673,-500.0,0.00011057,2]
[348931833,1736875860683,-500.0,0.00011057,2]
[348931834,1736875860693,-500.0,0.00011057,2]
[348931835,1736875860703,-500.0,0.00011057,2]
[348931836,1736875860713,-594.45,0.00011057,2]
[348931837,1736875860726,-500.0,0.00011057,2]
[348931838,1736875860736,-500.0,0.00011057,2]
[348931839,1736875860746,-500.0,0.00011057,2]
[348931840,1736875860757,-500.0,0.00011057,2]
[348931841,1736875860767,-500.0,0.00011057,2]
[348931842,1736875860778,-747.11,0.00011057,2]
[348931843,1736875860790,-500.0,0.00011057,2]
[348931844,1736875860801,-500.0,0.00011057,2]
[348931845,1736875860811,-500.0,0.00011057,2]
[348931846,1736875860822,-500.0,0.00011057,2]
[348931847,1736875860832,-500.0,0.00011057,2]
[348931848,1736875860842,-500.0,0.00011058,2]
[348931849,1736875860852,-500.0,0.00011058,2]
[348931850,1736875860861,-754.19,0.00011058,2]
[348931851,1736875860871,-762.15,0.00011058,2]
[348931852,1736875860880,-500.0,0.00011058,2]
[348931853,1736875860890,-901.26,0.00011058,2]
[348931854,1736875860900,-1975.09,0.00011058,2]
[348931855,1736875860910,-1064.08,0.00011058,2]
[348931856,1736875860920,-822.58,0.00011058,2]
[348931857,1736875860930,-503.447588,0.00011058,2]
[348931858,1736875860940,-550.786251,0.00011058,2]
[348931859,1736875860950,-2465.53,0.00011058,2]
[348931860,1736875860960,-816.8,0.00011058,2]
[348931861,1736875860974,-500.0,0.00011058,2]
[348931862,1736875860984,-500.0,0.00011058,2]
[348931863,1736875860994,-500.0,0.00011058,2]
[348931864,1736875861004,-2817.5,0.00011058,2]
[348931865,1736875861014,-904.37,0.00011058,2]
[348931866,1736875861023,-500.0,0.00011058,2]
[348931867,1736875861034,-500.0,0.00011058,2]
[348931868,1736875861044,-611.61819618,0.00011058,2]
[348931869,1736875861058,-656.72,0.00011058,2]
[348931870,1736875861070,-861.12180382,0.00011058,2]
[348931871,1736875861080,-500.0,0.00011058,2]
[348931872,1736875861090,-23.22435229,0.00011058,2]
[348931874,1736876524513,955.64,8.219e-05,2]
[348931915,1736877031912,-35912.27,8.973e-05,2]
[348931916,1736877031923,-165.34,8.979e-05,2]
[348931917,1736877031932,-12346.11,8.981e-05,2]
[348931918,1736877031942,-1000.0,8.982e-05,2]
[348931919,1736877031951,-150.0,8.983e-05,2]
[348931920,1736877031963,-3090.44816829,8.983e-05,2]
[348931921,1736877031973,-23900.0,8.984e-05,2]
[348931922,1736877031982,-7374.14,8.984e-05,2]
[348931923,1736877031992,-250.0,8.985e-05,2]
[348931924,1736877032002,-250.0,8.985e-05,2]
[348931925,1736877032012,-381.96,9.589e-05,2]
[348931926,1736877032021,-26565.0159868,9.873e-05,2]
[348931927,1736877032031,-4806.1797,9.875e-05,2]
[348931928,1736877032041,-1182.56066722,9.875e-05,2]
[348931929,1736877032050,-255.0,9.881e-05,2]
[348931930,1736877032060,-500.0,9.963e-05,2]
[348931931,1736877032070,-1566.61,9.963e-05,2]
[348931932,1736877032080,-500.0,9.963e-05,2]
[348931933,1736877032089,-570.81,9.963e-05,2]
[348931934,1736877032099,-689.48,9.963e-05,2]
[348931935,1736877032108,-1204.11,9.963e-05,2]
[348931936,1736877032117,-500.0,9.963e-05,2]
[348931937,1736877032127,-1000.0,9.963e-05,2]
[348931938,1736877032138,-148.32264382,9.963e-05,2]
[348931939,1736877032150,-351.67735618,9.963e-05,2]
[348931940,1736877032160,-654.99,9.963e-05,2]
[348931941,1736877032170,-500.0,9.963e-05,2]
[348931942,1736877032179,-1118.35,9.963e-05,2]
[348931943,1736877032190,-210.18499836,9.97e-05,2]
[348931944,1736877032200,-285.58531002,9.97e-05,2]
[348931945,1736877032210,-285.58531002,9.971e-05,2]
[348931946,1736877032221,-1235.66950861,9.971e-05,2]
[348931947,1736877032232,-210.18499836,9.971e-05,2]
[348931948,1736877032242,-5199.20012937,9.971e-05,2]
[348931949,1736877032252,-210.18499836,9.971e-05,2]
[348931950,1736877032261,-1530.86011193,9.972e-05,2]
[348931951,1736877032271,-5686.05301586,9.972e-05,2]
[348931952,1736877032282,-442.91624631,9.972e-05,2]
[348931953,1736877032291,-2292.75753819,9.973e-05,2]
[348931954,1736877032301,-412.48600631,9.973e-05,2]
[348931955,1736877032333,-5901.37756677,9.973e-05,2]
[348931956,1736877032343,-2292.75753819,9.974e-05,2]
[348931957,1736877032354,-1488.43697618,9.974e-05,2]
[348931958,1736877032363,-1235.66950861,9.974e-05,2]
[348931959,1736877032373,-6313.86357308,9.975e-05,2]
[348931960,1736877032383,-1235.66950861,9.975e-05,2]
[348931961,1736877032393,-5686.05301586,9.975e-05,2]
[348931962,1736877032403,-5686.05301586,9.976e-05,2]
[348931963,1736877032412,-3422.94371158,9.976e-05,2]
[348931964,1736877032424,-2890.9198615,9.976e-05,2]
[348931965,1736877032433,-5686.05301586,9.976e-05,2]
[348931966,1736877032443,-2292.75753819,9.976e-05,2]
[348931967,1736877032453,-442.91624631,9.977e-05,2]
[348931968,1736877032462,-2020.26399328,9.977e-05,2]
[348931969,1736877032472,-5199.20012937,9.979e-05,2]
[348931970,1736877032482,-442.91624631,9.98e-05,2]
[348931971,1736877032491,-2020.26399328,9.981e-05,2]
[348931972,1736877032501,-1488.43697616,9.981e-05,2]
[348931973,1736877032510,-210.18499836,9.981e-05,2]
[348931974,1736877032520,-1235.66950861,9.981e-05,2]
[348931975,1736877032529,-2292.75753819,9.982e-05,2]
[348931976,1736877032539,-5686.05301586,9.982e-05,2]
[348931977,1736877032548,-442.91624631,9.982e-05,2]
[348931978,1736877032557,-1235.66950861,9.983e-05,2]
[348931979,1736877032567,-2020.26399328,9.983e-05,2]
[348931980,1736877032578,-2020.26399328,9.983e-05,2]
[348931981,1736877032588,-200.0,9.986e-05,2]
[348931983,1736877032597,-1530.86011193,9.987e-05,2]
[348931985,1736877032607,-285.58531002,9.987e-05,2]
[348931987,1736877032616,-1530.86011193,9.987e-05,2]
[348931989,1736877032625,-5199.20012937,9.988e-05,2]
[348931991,1736877032634,-200.0,9.989e-05,2]
[348931993,1736877032643,-3426.10128167,9.989e-05,2]
[348931996,1736877032656,-431.964717,9.989e-05,2]
[348931998,1736877032668,-605.36999995,9.989e-05,2]
[348932000,1736877032679,-735.76413075,9.989e-05,2]
[348932002,1736877032688,-500.0,9.989e-05,2]
[348932004,1736877032698,-1582.95,9.989e-05,2]
[348932006,1736877032707,-271.73403754,9.989e-05,2]
[348932009,1736877032727,-437.11199998,9.989e-05,2]
[348932011,1736877032739,-600.0,9.989e-05,2]
[348932088,1736877037858,-235.7611,9.876e-05,2]
[348932089,1736877037868,-661.44396248,9.989e-05,2]
[348932090,1736877037877,-1373.99,9.989e-05,2]
[348932091,1736877037886,-500.0,9.989e-05,2]
[348932092,1736877037897,-807.68,9.989e-05,2]
[348932093,1736877037909,-1959.34,9.989e-05,2]
[348932094,1736877037918,-500.0,9.989e-05,2]
[348932095,1736877037928,-500.0,9.989e-05,2]
[348932096,1736877037938,-775.54,9.989e-05,2]
[348932097,1736877037947,-610.4192155,9.989e-05,2]
[348932098,1736877037956,-682.99,9.989e-05,2]
[348932099,1736877037965,-538.58530086,9.989e-05,2]
[348932100,1736877038059,-7.77469914,9.989e-05,2]
[348932101,1736877038069,-500.0,9.989e-05,2]
[348932102,1736877038078,-500.0,9.989e-05,2]
[348932103,1736877038087,-500.0,9.989e-05,2]
[348932104,1736877038098,-255.7582657,9.989e-05,2]
[348932105,1736877038107,-1531.13,9.989e-05,2]
[348932106,1736877038117,-200.0,9.99e-05,2]
[348932107,1736877038126,-285.58531002,9.99e-05,2]
[348932108,1736877038135,-19.68218329,9.99e-05,2]
[348932109,1736877038147,-2000.58180999,9.99e-05,2]
[348932110,1736877038156,-285.58531002,9.99e-05,2]
[348932111,1736877038166,-377.11162515,9.991e-05,2]
[348932112,1736877038207,-1771.28400005,9.991e-05,2]
[348932113,1736877038220,-144.36191299,9.991e-05,2]
[348932114,1736877038231,-200.0,9.991e-05,2]
[348932115,1736877038240,-103.13809001,9.992e-05,2]
[348932116,1736877038252,-2682.394968,9.992e-05,2]
[348932117,1736877038283,-2413.66707136,9.992e-05,2]
[348932118,1736877038292,-6313.86357308,9.992e-05,2]
[348932119,1736877038301,-442.91624631,9.993e-05,2]
[348932120,1736877038311,-1530.86011193,9.993e-05,2]
[348932121,1736877038320,-456.19299632,9.993e-05,2]
[348932122,1736877038332,-114.18700368,9.993e-05,2]
[348932123,1736877038341,-563.46,9.993e-05,2]
[348932124,1736877038351,-500.0,9.993e-05,2]
[348932126,1736877038360,-915.37,9.993e-05,2]
[348932127,1736877038370,-555.16,9.993e-05,2]
[348932129,1736877038379,-1233.43,9.993e-05,2]
[348932131,1736877038388,-5199.20012937,9.993e-05,2]
[348932133,1736877038397,-2218.70678695,9.994e-05,2]
[348932136,1736877038416,-1430.79167302,9.994e-05,2]
[348932139,1736877038440,-2664.36511311,9.994e-05,2]
[348932141,1736877038449,-174.81785654,9.994e-05,2]
[348932144,1736877038460,-6139.04571654,9.994e-05,2]
[348932146,1736877038470,-2020.26399328,9.994e-05,2]
[348932148,1736877038479,-500.0,9.995e-05,2]
[348932150,1736877038488,-432.64668562,9.995e-05,2]
[348932152,1736877038497,-500.0,9.995e-05,2]
[348932155,1736877038507,-500.0,9.995e-05,2]
[348932158,1736877038517,-500.0,9.995e-05,2]
[348932160,1736877038526,-500.0,9.995e-05,2]
[348932163,1736877038536,-500.0,9.995e-05,2]
[348932166,1736877038545,-607.63750142,9.995e-05,2]
[348932169,1736877038554,-500.0,9.995e-05,2]
[348932172,1736877038563,-500.0,9.995e-05,2]
[348932175,1736877038573,-500.0,9.995e-05,2]
[348932178,1736877038583,-500.0,9.995e-05,2]
[348932181,1736877038592,-500.0,9.995e-05,2]
[348932184,1736877038601,-699.86,9.995e-05,2]
[348932187,1736877038610,-2995.2,9.995e-05,2]
[348932190,1736877038619,-500.0,9.995e-05,2]
[348932192,1736877038628,-768.85,9.995e-05,2]
[348932193,1736877038637,-1597.75,9.995e-05,2]
[348932194,1736877038647,-5227.73,9.995e-05,2]
[348932195,1736877038656,-500.0,9.995e-05,2]
[348932196,1736877038668,-500.0,9.995e-05,2]
[348932197,1736877038678,-757.26,9.995e-05,2]
[348932198,1736877038687,-973.38,9.995e-05,2]
[348932199,1736877038696,-500.0,9.995e-05,2]
[348932200,1736877038706,-500.0,9.995e-05,2]
[348932201,1736877038717,-500.0,9.995e-05,2]
[348932202,1736877038728,-500.0,9.995e-05,2]
[348932203,1736877038738,-1507.19,9.995e-05,2]
[348932204,1736877038747,-500.0,9.995e-05,2]
[348932206,1736877038756,-500.0,9.995e-05,2]
[348932208,1736877038765,-500.0,9.995e-05,2]
[348932210,1736877038776,-500.0,9.995e-05,2]
[348932212,1736877038786,-709.73,9.995e-05,2]
[348932214,1736877038795,-2049.9,9.995e-05,2]
[348932216,1736877038804,-881.61,9.995e-05,2]
[348932218,1736877038813,-58.5212293,9.995e-05,2]
[348932235,1736877039886,-500.0,9.989e-05,2]
[348932236,1736877039897,-494.1187707,9.995e-05,2]
[348932237,1736877039907,-500.0,9.995e-05,2]
[348932238,1736877039917,-1451.3,9.995e-05,2]
[348932239,1736877039927,-500.0,9.995e-05,2]
[348932240,1736877039937,-779.39,9.995e-05,2]
[348932241,1736877039947,-500.0,9.995e-05,2]
[348932242,1736877039956,-500.0,9.995e-05,2]
[348932243,1736877039966,-707.63,9.995e-05,2]
[348932244,1736877039977,-1530.86011193,9.996e-05,2]
[348932245,1736877039987,-2292.75753819,9.996e-05,2]
[348932246,1736877039996,-5686.05301586,9.996e-05,2]
[348932247,1736877040006,-1530.86011193,9.997e-05,2]
[348932248,1736877040016,-2284.55,9.998e-05,2]
[348932249,1736877040026,-220.4170038,9.998e-05,2]
[348932250,1736877040042,-1078.9129962,9.998e-05,2]
[348932251,1736877040052,-974.53,9.998e-05,2]
[348932252,1736877040062,-156.997619,9.998e-05,2]
[348932253,1736877040071,-634.093781,9.998e-05,2]
[348932254,1736877040081,-500.0,9.998e-05,2]
[348932255,1736877040091,-695.648084,9.998e-05,2]
[348932256,1736877040100,-500.0,9.998e-05,2]
[348932257,1736877040110,-3115.66,9.998e-05,2]
[348932258,1736877040120,-556.91,9.998e-05,2]
[348932259,1736877040130,-159.672158,9.998e-05,2]
[348932260,1736877040140,-500.0,9.998e-05,2]
[348932261,1736877040149,-157.421383,9.998e-05,2]
[348932262,1736877040159,-500.0,9.998e-05,2]
[348932263,1736877040168,-500.0,9.998e-05,2]
[348932264,1736877040178,-500.0,9.998e-05,2]
[348932265,1736877040188,-897.42,9.998e-05,2]
[348932266,1736877040198,-367.64291493,9.998e-05,2]
[348932267,1736877040207,-500.0,9.998e-05,2]
[348932268,1736877040219,-500.0,9.998e-05,2]
[348932269,1736877040228,-501.60009995,9.998e-05,2]
[348932270,1736877040238,-500.0,9.998e-05,2]
[348932271,1736877040248,-500.0,9.998e-05,2]
[348932272,1736877040257,-500.0,9.998e-05,2]
[348932273,1736877040267,-500.0,9.998e-05,2]
[348932274,1736877040276,-501.26490499,9.998e-05,2]
[348932275,1736877040287,-502.40546366,9.998e-05,2]
[348932276,1736877040296,-500.0,9.998e-05,2]
[348932277,1736877040305,-500.0,9.998e-05,2]
[348932278,1736877040315,-500.0,9.998e-05,2]
[348932279,1736877040325,-540.25,9.998e-05,2]
[348932280,1736877040335,-501.51026501,9.998e-05,2]
[348932281,1736877040345,-500.89784117,9.998e-05,2]
[348932282,1736877040355,-500.0,9.998e-05,2]
[348932283,1736877040366,-501.43504986,9.998e-05,2]
[348932284,1736877040377,-500.0,9.998e-05,2]
[348932285,1736877040386,-500.0,9.998e-05,2]
[348932286,1736877040396,-500.0,9.998e-05,2]
[348932288,1736877040405,-500.73157871,9.998e-05,2]
[348932290,1736877040414,-504.38809053,9.998e-05,2]
[348932291,1736877040424,-500.0,9.998e-05,2]
[348932293,1736877040433,-500.0,9.998e-05,2]
[348932295,1736877040443,-500.66720473,9.998e-05,2]
[348932297,1736877040453,-762.67,9.998e-05,2]
[348932299,1736877040462,-500.0,9.998e-05,2]
[348932300,1736877040472,-500.0,9.998e-05,2]
[348932301,1736877040483,-500.0,9.998e-05,2]
[348932302,1736877040492,-500.0,9.998e-05,2]
[348932303,1736877040502,-500.0,9.998e-05,2]
[348932304,1736877040512,-500.0,9.998e-05,2]
[348932306,1736877040523,-506.66271476,9.998e-05,2]
[348932307,1736877040533,-500.0,9.998e-05,2]
[348932308,1736877040542,-589.9,9.998e-05,2]
[348932309,1736877040552,-2645.26,9.998e-05,2]
[348932310,1736877040563,-500.0,9.998e-05,2]
[348932311,1736877040573,-500.0,9.998e-05,2]
[348932312,1736877040582,-658.85,9.998e-05,2]
[348932313,1736877040592,-500.0,9.998e-05,2]
[348932314,1736877040603,-500.0,9.998e-05,2]
[348932315,1736877040614,-571.22,9.998e-05,2]
[348932316,1736877040624,-500.0,9.998e-05,2]
[348932317,1736877040635,-500.0,9.998e-05,2]
[348932318,1736877040646,-500.0,9.998e-05,2]
[348932319,1736877040656,-632.21,9.998e-05,2]
[348932320,1736877040668,-899.15,9.998e-05,2]
[348932321,1736877040677,-500.0,9.998e-05,2]
[348932322,1736877040687,-500.0,9.998e-05,2]
[348932323,1736877040697,-500.0,9.998e-05,2]
[348932324,1736877040706,-500.0,9.998e-05,2]
[348932325,1736877040716,-500.0,9.998e-05,2]
[348932326,1736877040727,-500.0,9.998e-05,2]
[348932327,1736877040738,-500.0,9.998e-05,2]
[348932328,1736877040747,-656.8,9.998e-05,2]
[348932329,1736877040757,-500.0,9.998e-05,2]
[348932330,1736877040767,-500.0,9.998e-05,2]
[348932331,1736877040777,-500.0,9.998e-05,2]
[348932332,1736877040789,-540.26,9.998e-05,2]
[348932333,1736877040801,-714.07,9.998e-05,2]
[348932334,1736877040810,-500.0,9.998e-05,2]
[348932335,1736877040820,-500.0,9.998e-05,2]
[348932336,1736877040833,-500.0,9.998e-05,2]
[348932337,1736877040845,-500.0,9.998e-05,2]
[348932338,1736877040854,-2399.55,9.998e-05,2]
[348932339,1736877040864,-500.0,9.998e-05,2]
[348932340,1736877040875,-500.87,9.998e-05,2]
[348932341,1736877040884,-500.0,9.998e-05,2]
[348932342,1736877040894,-500.0,9.998e-05,2]
[348932343,1736877040903,-500.0,9.998e-05,2]
[348932344,1736877040913,-500.0,9.998e-05,2]
[348932345,1736877040923,-500.0,9.998e-05,2]
[348932346,1736877040932,-500.0,9.998e-05,2]
[348932347,1736877040942,-500.0,9.998e-05,2]
[348932348,1736877040954,-708.42,9.998e-05,2]
[348932349,1736877040963,-500.0,9.998e-05,2]
[348932350,1736877040973,-500.0,9.998e-05,2]
[348932351,1736877040984,-500.0,9.998e-05,2]
[348932352,1736877040994,-500.0,9.998e-05,2]
[348932353,1736877041004,-582.99,9.998e-05,2]
[348932354,1736877041015,-897.45,9.998e-05,2]
[348932355,1736877041025,-3105.43,9.998e-05,2]
[348932356,1736877041034,-570.14,9.998e-05,2]
[348932357,1736877041045,-1052.32,9.998e-05,2]
[348932358,1736877041056,-500.0,9.998e-05,2]
[348932359,1736877041067,-2562.11,9.998e-05,2]
[348932360,1736877041076,-593.58,9.998e-05,2]
[348932361,1736877041086,-500.0,9.998e-05,2]
[348932362,1736877041097,-500.0,9.998e-05,2]
[348932363,1736877041106,-500.0,9.998e-05,2]
[348932364,1736877041116,-500.0,9.998e-05,2]
[348932365,1736877041126,-2129.53,9.998e-05,2]
[348932366,1736877041135,-863.97,9.998e-05,2]
[348932367,1736877041144,-603.2,9.998e-05,2]
[348932368,1736877041153,-500.0,9.998e-05,2]
[348932369,1736877041163,-500.0,9.998e-05,2]
[348932370,1736877041172,-500.0,9.998e-05,2]
[348932371,1736877041182,-500.0,9.998e-05,2]
[348932372,1736877041191,-500.0,9.998e-05,2]
[348932373,1736877041200,-572.44,9.998e-05,2]
[348932374,1736877041209,-2716.91,9.998e-05,2]
[348932375,1736877041220,-500.0,9.998e-05,2]
[348932376,1736877041229,-500.0,9.998e-05,2]
[348932377,1736877041239,-500.0,9.998e-05,2]
[348932378,1736877041248,-500.0,9.998e-05,2]
[348932379,1736877041257,-500.0,9.998e-05,2]
[348932380,1736877041267,-500.0,9.998e-05,2]
[348932381,1736877041277,-500.0,9.998e-05,2]
[348932382,1736877041288,-500.0,9.998e-05,2]
[348932383,1736877041297,-1215.3,9.998e-05,2]
[348932384,1736877041306,-738.44,9.998e-05,2]
[348932385,1736877041315,-175.3757072,9.998e-05,2]
[348932386,1736877041598,-324.6242928,9.998e-05,2]
[348932387,1736877041608,-500.0,9.998e-05,2]
[348932388,1736877041617,-140.21332411,9.998e-05,2]
[348932389,1736877041651,-359.78667589,9.998e-05,2]
[348932390,1736877041661,-500.0,9.998e-05,2]
[348932391,1736877041670,-2967.18,9.998e-05,2]
[348932392,1736877041679,-500.0,9.998e-05,2]
[348932393,1736877041688,-584.37,9.998e-05,2]
[348932394,1736877041698,-500.0,9.998e-05,2]
[348932395,1736877041707,-500.0,9.998e-05,2]
[348932396,1736877041717,-500.0,9.998e-05,2]
[348932397,1736877041726,-3197.43,9.998e-05,2]
[348932398,1736877041735,-210.18499836,9.998e-05,2]
[348932399,1736877041744,-442.91624631,9.998e-05,2]
[348932400,1736877041753,-500.0,9.999e-05,2]
[348932401,1736877041763,-500.0,9.999e-05,2]
[348932402,1736877041771,-500.0,9.999e-05,2]
[348932403,1736877041781,-500.0,9.999e-05,2]
[348932404,1736877041791,-500.0,9.999e-05,2]
[348932405,1736877041800,-483.21022185,9.999e-05,2]
[348932406,1736877041809,-500.41805594,9.999e-05,2]
[348932407,1736877041818,-500.0,9.999e-05,2]
[348932408,1736877041829,-500.0,9.999e-05,2]
[348932409,1736877041840,-500.0,9.999e-05,2]
[348932410,1736877041849,-500.0,9.999e-05,2]
[348932411,1736877041858,-500.0,9.999e-05,2]
[348932412,1736877041868,-500.0,9.999e-05,2]
[348932413,1736877041878,-638.129666,9.999e-05,2]
[348932414,1736877041889,-500.0,9.999e-05,2]
[348932415,1736877041899,-318.59,9.999e-05,2]
[348932416,1736877041908,-500.0,9.999e-05,2]
[348932417,1736877041917,-206.16602027,9.999e-05,2]
[348932418,1736877041928,-500.0,9.999e-05,2]
[348932419,1736877041938,-500.0,9.999e-05,2]
[348932420,1736877041947,-500.0,9.999e-05,2]
[348932421,1736877041958,-500.0,9.999e-05,2]
[348932422,1736877041968,-500.0,9.999e-05,2]
[348932423,1736877041977,-500.0,9.999e-05,2]
[348932424,1736877041987,-500.0,9.999e-05,2]
[348932425,1736877041996,-500.0,9.999e-05,2]
[348932426,1736877042006,-500.0,9.999e-05,2]
[348932427,1736877042015,-500.0,9.999e-05,2]
[348932428,1736877042026,-500.0,9.999e-05,2]
[348932429,1736877042036,-583.09,9.999e-05,2]
[348932430,1736877042045,-500.0,9.999e-05,2]
[348932431,1736877042055,-500.0,9.999e-05,2]
[348932432,1736877042064,-500.0,9.999e-05,2]
[348932433,1736877042073,-500.0,9.999e-05,2]